Cogmind - Beta 14 @@@ ROGUE MODE // 2024.08.11 @ 06:05:58 Player: Lillith Result: Destroyed by VE-KTK(R) with Subdweller Beam Cannon Performance ------------- Evolutions (0) 0 Regions Visited (2) 400 Robots Destroyed (22) 110 Value Destroyed (623) 623 Prototype IDs (0) 0 Alien Tech Used (0) 0 Bonus (0) 0 TOTAL SCORE: 1133 Bonus ------- None Cogmind --------- Core Integrity 0/250 Matter 284/300 Energy 126/200 System Corruption 0% Temperature Cool (9) Movement Walking (260) Ox2 Location -10/Subcaves Parts ------- > --- POWER (1) -------- Subdweller Power Source > --- PROPULSION (2) --- Aluminum Leg > --- UTILITY (2) ------ Large Storage Unit > --- WEAPON (2) ------- Subdweller Laser > --- INVENTORY (15) --- Aluminum Leg Improved Terrain Scanner Small Laser Grenade Launcher Grenade Launcher Welding Torch Peak State ------------ > --- POWER ------------ Ion Engine > --- PROPULSION ------- Light Treads Light Treads > --- UTILITY ---------- Large Storage Unit Improved Terrain Scanner > --- WEAPON ----------- Medium Laser Assault Rifle > --- INVENTORY -------- Light Ion Engine Aluminum Leg Aluminum Leg Aluminum Leg Aluminum Leg Signal Interpreter Small Laser Small Laser Grenade Launcher Grenade Launcher [Rating: 10] Favorites ----------- Power Light Ion Engine Engine Light Ion Engine Propulsion Light Treads Treads Light Treads Leg Aluminum Leg Utility Improved Terrain Scanner Device Improved Terrain Scanner Storage Large Storage Unit Processor Signal Interpreter Weapon Assault Rifle Energy Gun Medium Laser Ballistic Gun Assault Rifle Build | -11 -10 -10 ------- Run | Yrd Mat Sub Slots Evolved . | . . . Power . | . . . Propulsion . | . . . Utility . | . . . Weapon . | . . . Parts Attached 19 | 7 5 7 Power 4 | 1 1 2 Engine 4 | 1 1 2 Core . | . . . Reactor . | . . . Propulsion 6 | 2 2 2 Treads 2 | 2 . . Leg 4 | . 2 2 Wheel . | . . . Hover . | . . . Flight . | . . . Utility 5 | 2 1 2 Device 2 | 1 . 1 Storage 2 | 1 1 . Processor 1 | . . 1 Hackware . | . . . Protection . | . . . Artifact . | . . . Weapon 4 | 2 1 1 Energy Gun 3 | 1 1 1 Energy Cannon . | . . . Ballistic Gun 1 | 1 . . Ballistic Cannon . | . . . Launcher . | . . . Special Weapon . | . . . Impact Weapon . | . . . Slashing Weapon . | . . . Piercing Weapon . | . . . Special Melee Weapon . | . . . Unidentified Prototypes . | . . . Parts Lost 10 | . 3 7 Power 2 | . 1 1 Propulsion 4 | . 1 3 Utility 1 | . . 1 Weapon 3 | . 1 2 Highest Loss Streak 6 | . 3 6 To Critical Strikes . | . . . Average Slot Usage (%) 97 | . 99 94 Engine 12 | . 13 9 Treads 18 | . 25 . Leg 9 | . 1 28 Device 13 | . 14 13 Storage 14 | . 14 14 Energy Gun 14 | . 13 14 Ballistic Gun 13 | . 14 12 Peak Build Rating 10 | 9 10 10 Average Rating 8 | 5 9 8 On Entrance 6 | . 9 9 Naked Turns . | . . . Heaviest Build 30 | 13 30 27 Greatest Support 40 | 40 40 20 Greatest Overweight (x) 2 | . 2 1 Average Overweight (x) . | . . 1 Largest Inventory Capacity 15 | 8 15 15 Average Capacity 11 | 7 11 15 Most Carried 11 | 2 11 10 Average Carried 7 | 1 7 9 Final Capacity 15 | 8 15 15 Final Carried 10 | 2 10 6 Class Distribution -------------------- 83% | Mutant 16% | Scavenger-Mutant Dominant Class ---------------- Mutant | -10/Materials Scavenger-Mutant | -10/Subcaves Resources | -11 -10 -10 ----------- Run | Yrd Mat Sub Matter Collected 539 | 285 203 51 Remotely . | . . . Salvage Created 887 | 103 697 87 Parts 51 | 8 40 3 Haulers Intercepted . | . . . Recyclers Shooed . | . . . Parts Field Recycled . | . . . Retrieved Matter . | . . . Parts Self-Destructed 3 | . . 3 Prevented . | . . . Kills | -11 -10 -10 ------- Run | Yrd Mat Sub Combat Hostiles Destroyed 15 | . 13 2 Guns 15 | . 13 2 Classes Destroyed 6 | 2 3 1 Builder 2 | . 2 . Tunneler 2 | 2 . . Recycler 1 | 1 . . Watcher 2 | . 2 . Grunt 13 | . 13 . Subdweller 2 | . . 2 Best Kill Streak 4 | 1 4 1 Combat Bots Only 3 | . 3 1 Max Kills in Single Turn 1 | 1 1 1 Gunslinging . | . . . Exploded . | . . . Melee . | . . . Uniques/NPCs Destroyed . | . . . Combat | -11 -10 -10 -------- Run | Yrd Mat Sub Hostile Shots Fired 94 | . 63 31 Missed 17 | . 13 4 Damage Taken 1330 | . 648 682 Core 251 | . 93 158 Absorbed by Shields . | . . . Core Remaining (%) 100 | 100 . . Volleys Fired 81 | 5 56 20 Largest 2 | 2 2 2 Hottest 100 | 70 70 100 Shots Fired 153 | 10 112 31 Gun 153 | 10 112 31 Cannon . | . . . Launcher . | . . . Special . | . . . Kinetic 70 | 5 56 9 Thermal 83 | 5 56 22 Explosive . | . . . Electromagnetic . | . . . Robot Hit Streak 15 | 3 7 15 Robot Miss Streak 3 | 2 3 2 Penetration Max . | . . . Secondary Targets . | . . . Shots Hit Robots 103 | 5 70 28 Core Hits 45 | 4 34 7 Critical Kills . | . . . Critical Parts Destroyed . | . . . Critical Strikes 2 | . 2 . Burn 2 | . 2 . Melee Attacks . | . . . Impact . | . . . Slashing . | . . . Piercing . | . . . Sneak Attacks . | . . . Combat Hostiles . | . . . Follow-up Attacks . | . . . Damage Inflicted 1388 | 62 912 414 Guns 1388 | 62 912 414 Cannons . | . . . Explosions . | . . . Melee . | . . . Ramming . | . . . Kinetic 516 | 12 414 90 Thermal 872 | 50 498 324 Explosive . | . . . Electromagnetic . | . . . Impact . | . . . Slashing . | . . . Piercing . | . . . Highest Corruption . | . . . Average Corruption . | . . . Corruption Purged . | . . . Corruption Blocked . | . . . Overload Shots . | . . . Overflow Damage . | . . . Projectiles . | . . . Explosions . | . . . Melee . | . . . Knockbacks . | . . . Impact . | . . . Kinetic . | . . . Secondary . | . . . Self-Inflicted Damage . | . . . Shots . | . . . Rammed . | . . . Targets Rammed . | . . . Kicked . | . . . Crushed . | . . . Highest Temperature 198 | 18 198 . Average Temperature 51 | 9 54 . Received Heat Transfer 570 | . 354 216 Siege Activations . | . . . Robots Corrupted . | . . . Combat Hostiles . | . . . Parts Fried . | . . . Impact Corruptions . | . . . Robots Melted . | . . . Combat Hostiles . | . . . Parts Melted 8 | . 4 4 Heat Transferred 2265 | 148 1592 525 Parts Sabotaged . | . . . Parts Stolen . | . . . Parts Stripped . | . . . Power Chain Reactions . | . . . Alert | -11 -10 -10 ------- Run | Yrd Mat Sub Peak Influence 264 | 15 264 . Initial 9 | . 9 . Average 78 | 6 91 . Maximum Alert Level 1 | . 1 . Low Security (%) 92 | 100 90 . Level 1 7 | . 9 . Level 2 . | . . . Level 3 . | . . . Level 4 . | . . . Level 5 . | . . . High Security . | . . . Max Security . | . . . Squads Dispatched 2 | . 2 . Investigation 1 | . 1 . Extermination . | . . . Reinforcement 1 | . 1 . Assault . | . . . Garrison . | . . . Intercept . | . . . Searches Triggered . | . . . Construction Impeded . | . . . Haulers Reinforced . | . . . Active Scanning Responses . | . . . Cargo Convoy Interrupts . | . . . Stealth | -11 -10 -10 --------- Run | Yrd Mat Sub Distress Signals 4 | . 4 . Communications Jammed . | . . . Distress Signals . | . . . Times Spotted 28 | . 25 3 Peak Tracking Total 4 | . 4 1 Tactical Retreats 4 | . 4 . Traps | -11 -10 -10 ------- Run | Yrd Mat Sub Traps Triggered . | . . . Indirectly . | . . . Trap Hack Attempts . | . . . Triggered . | . . . Disarmed . | . . . Reprogrammed . | . . . Reused . | . . . Traps Extracted . | . . . Installed . | . . . Triggered . | . . . Machines | -11 -10 -10 ---------- Run | Yrd Mat Sub Machines Disabled . | . . . Max in Single Turn . | . . . Machines Repaired . | . . . Machines Dismantled . | . . . Machines Sabotaged . | . . . Overloaded Fab Kills . | . . . Hacking | -11 -10 -10 --------- Run | Yrd Mat Sub Machines Accessed 2 | . 2 . Terminals 2 | . 2 . Fabricators . | . . . Repair Stations . | . . . Recycling Units . | . . . Scanalyzers . | . . . Garrison Access . | . . . Total Hacks 4 | . 4 . Successful 2 | . 2 . Failed 2 | . 2 . Catastrophic . | . . . Database Lockouts . | . . . Manual 1 | . 1 . Terminals 4 | . 4 . Fabricators . | . . . Repair Stations . | . . . Recycling Units . | . . . Scanalyzers . | . . . Garrison Access . | . . . Terminal Hacks 2 | . 2 . Branch Access Points 1 | . 1 . Unreport Threat 1 | . 1 . Fabricator Hacks . | . . . Repair Station Hacks . | . . . Recycling Unit Hacks . | . . . Scanalyzer . | . . . Garrison Access Hacks . | . . . Unauthorized Hacks . | . . . Terminals . | . . . Fabricators . | . . . Repair Stations . | . . . Recycling Units . | . . . Scanalyzers . | . . . Garrison Access . | . . . Data Cores Recovered . | . . . Used . | . . . Hacking Detections 2 | . 2 . Full Trace Events 1 | . 1 . Feedback Events . | . . . Feedback Blocked . | . . . Robot Schematics Acquired . | . . . Robots Built . | . . . Authchips . | . . . Time . | . . . Total Robot Build Rating . | . . . Part Schematics Acquired . | . . . Parts Built . | . . . Authchips . | . . . Time . | . . . Total Part Build Rating . | . . . Parts Repaired . | . . . Time . | . . . Parts Recycled . | . . . Recycled Matter . | . . . Retrieved Matter . | . . . Retrieved Components . | . . . Parts Scanalyzed . | . . . Part Schematics Acquired . | . . . Parts Damaged . | . . . Bothacking | -11 -10 -10 ------------ Run | Yrd Mat Sub Used RIF Installer . | . . . Robots Hacked . | . . . Non-combat . | . . . Combat . | . . . Robot Hacks Applied . | . . . Relay Couplers Released . | . . . Fabnet Peak Effective % . | . . . Robots Rewired . | . . . Allies Hacked . | . . . Hacks Repelled . | . . . Allies | -11 -10 -10 -------- Run | Yrd Mat Sub Total Allies . | . . . Largest Group . | . . . Highest-Rated Group . | . . . Highest-Rated Ally . | . . . Total Orders . | . . . Ally Attacks . | . . . Total Damage . | . . . Kills . | . . . Allies Corrupted . | . . . Allies Melted . | . . . Intel | -11 -10 -10 ------- Run | Yrd Mat Sub Robot Analysis Total . | . . . Derelict Logs Recovered . | . . . Drone Launches . | . . . Drone Recoveries . | . . . Exploration | -11 -10 -10 ------------- Run | Yrd Mat Sub Turns Passed 1297 | 152 808 337 Spaces Moved 558 | 80 340 138 Core 2 | 2 . . Treads 399 | 78 321 . Legs 157 | . 19 138 Wheels . | . . . Hover . | . . . Flight . | . . . Fastest Speed 50 | 50 160 190 Average Speed 168 | 157 161 190 Slowest Speed 260 | 160 260 190 Overloaded Moves . | . . . Propulsion Burnouts . | . . . Robots Hopped . | . . . Cave-ins Triggered . | . . . Exploration Rate (%) 19 | 5 40 13 Regions Visited 2 Branch Regions 1 Pre-discovered Areas . | . . . Known Exits Taken . | . . . Unknown Exits Taken 2 | 1 1 . Scrap Searched . | . . . Spaces Dug . | . . . Terrain Destroyed . | . . . Melee . | . . . Projectile . | . . . AOE . | . . . Terrain Rammed . | . . . Walls Destroyed . | . . . Machines Disabled . | . . . Actions | -11 -10 -10 --------- Run | Yrd Mat Sub Total 763 | 93 488 182 Wait 84 | . 73 11 Move 556 | 79 339 138 Hop . | . . . Pick Up 16 | 2 11 3 Fast Attach 7 | 7 . . Attach 10 | . 3 7 Detach 3 | . 1 2 Swap 2 | . 2 . Drop 4 | . 3 1 Fire 81 | 5 56 20 Melee . | . . . Ram . | . . . Kick . | . . . Crush . | . . . Escape Stasis . | . . . Rewire . | . . . Trap . | . . . Miscellaneous . | . . . Route ------- -11/Scrapyard -10/Materials (discovered 3 exits: [*Mat] / Min / [*Sub]) -10/Subcaves History --------- Turn | Location | Event 17 | -11/Scrapyard | Discovered new exit (range 15) 153 | -11/Scrapyard | Entered Materials 306 | -10/Materials | Build established: Mutant 632 | -10/Materials | Identified exit to Mines 683 | -10/Materials | Discovered new exit (range 14) 948 | -10/Materials | Discovered new exit (range 7) 961 | -10/Materials | Lost 3 parts (1p1n1w) 961 | -10/Materials | Entered Subcaves 1273 | -10/Subcaves | Core integrity fell below 50% 1293 | -10/Subcaves | Core integrity fell below 20% 1298 | -10/Subcaves | Destroyed by VE-KTK(R) with Subdweller Beam Cannon Last Messages --------------- 01036_ LI-M6C(R) destroyed. 01041_ Acquired Sub. Power Source. 01042_ Acquired 22 matter. 01054_ Subatomizers dissect the Disposable Heat Sink. 01179_ Lgt. Ion Engine destroyed. 01196_ Sub. Optics melted. 01196_ Sub. Power Source melted. 01196_ Disposable Heat Sink melted. 01196_ MP-UZ8(R) destroyed. 01200_ Dropped Imp. Terrain Scanner. 01202_ Acquired Imp. Terrain Scanner. 01205_ Discarded Signal Interpreter. 01207_ Acquired 29 matter. 01211_ Acquired Sub. Laser. 01264_ Assault Rifle destroyed. 01270_ Aluminum Leg destroyed. 01274_ Sml. Laser destroyed. 01276_ Aluminum Leg destroyed. 01290_ Seismic Detector destroyed. 01296_ Sub. Laser shoots sparks and powers down. Map ----- +----------------------------------------------------+ | ????????????????????????????????????????????????? | | ????????????????????????????????????????????????? | | ????????????????????????????????????????????????? | | ????????????????????????????????????????????????? | | ?? ????????????????????????????????????????????? | | ? ????????????????????????????????????????????? | | ? ????????????????????????????????????????????? | | ? ###?????????????????????????????????????????? | | ? ?????????????????????????????????????????? | | ?# #?##?????????#????????????????????????????? | | ## ## #?#???????# ???????????????????????????? | | # #?????????? ???????????????????????????? | | ####??????? ??????????????????????????? | | #??? ?? ? ??????????????????????????? | | ????????? ?????????????????????????? | | ??????????? ?????????????????????????? | | #???????????? #????????????????????????? | | ####?????????? ###?????????????????????? | | ##??####??? ""#???? #??????????????? | | #### ###??# "####"""#??????????????? | | ## #### """"" #??????????????? | | ### ## #??????????????? | | ##?### #??????????????? | | ##??## #### ## ###??????????????? | | #???# #??# R;######????????????????? | | ###???# #### @ #???????????????????? | | ??????# ## ## #???????????????????? | | ??????# ####%& ###;"##???????????????????? | | #?????## ##?##########?##"#????????????????????? | | #??????####??????????????###????????????????????? | | ??????????????????????#?????????????????????????? | | ????##?????#????????????????????????????????????? | | ?????#?#?#??????????????????????????????????????? | | ???????????#?#??????????????????????????????????? | | #???????????????????????????????????????????????? | | ?#??#???????????????????#???????????????????????? | | ????????????????????????????????????????????????? | | ??????????#?????????????????????????????????????? | | ?????????????????#??????????????????????????????? | | ????????????????????????????????????????????????? | | ????????????????????????????????????????????????? | | ????????????????#???????????????????????????????? | | ????????????????????????????????????????????????? | | ????????????????????????????????????????????????? | | | | | | | | | | | | | +----------------------------------------------------+ Best States ------------- Heat Dissipation 25 Energy Generation 15 Energy Capacity 250 Matter Stores 300 Matter Capacity 300 Sight Range 16 Terrain Scan Range 16 Terrain Scan Density 10 Evasion (%) 40 Recoil Reduction 2 Item Schematics ----------------- None Robot Schematics ------------------ None Fabricated ------------ Nothing Alien Tech Used ----------------- None Achievements -------------- None Challenges ------------ None Game ------ Seed ConstructArmoredScrapsphere Manual? 0 Play Time 00:15:29 Cumulative 4.9 hours Start 2024.08.11 @ 03:11:14 End 2024.08.11 @ 06:05:58 Sessions 2 Manual Loads 0 Difficulty Rogue Special Mode None Game No. 9 Rogue 9 Adventurer 0 Explorer 0 Win Type - Total 0 Types 0/0/0/0/0/0/0/0/0 Lore% 12 Gallery% 7 Achievement% 10 Wizard Run 0 Options --------- Layout 0 ASCII 0 Keyboard 1 Movement Arrows Keybinds 0 Fullscreen 2 Font 24/Smallcaps Map View 76x50 Zoom Use 0% Tactical HUD 1 Map Filters NONE Filters NONE Steam 1 RUN: 70f097bd-925c-4a79-91d2-cddbbabac9e6